bitfinex/quotes_ETHUSD_20241104
["timestamp","ask_amount","ask_price","bid_price","bid_amount"]
[1730717308008,4.0503,2469.0,2468.7,0.19146915]
[1730717308325,4.0503,2469.0,2468.6,4.05087]
[1730717308534,4.05041,2468.9,2468.7,0.19148316]
[1730717308703,4.05041,2468.9,2468.5,4.82492]
[1730717308902,4.05041,2468.9,2468.6,0.19148217]
[1730717309111,4.05041,2468.9,2468.7,0.19148217]
[1730717309313,4.05041,2468.9,2468.5,4.82492]
[1730717309502,4.05041,2468.9,2468.6,0.19147318]
[1730717309701,4.05041,2468.9,2468.7,0.19147318]
[1730717309922,4.05041,2468.9,2468.5,4.82492]
[1730717310231,4.05041,2468.9,2468.6,0.19148023]
[1730717310432,4.05041,2468.9,2468.7,0.19148023]
[1730717310595,0.90442589,2468.9,2468.5,0.7739]
[1730717310806,4.05101,2468.6,2468.3,0.7647]
[1730717311036,4.05112,2468.5,2468.4,0.1915259]
[1730717313703,4.05112,2468.5,2468.1,4.81626]
[1730717313900,4.05112,2468.5,2468.2,0.49786686]
[1730717314125,4.05112,2468.5,2468.3,0.19147866]
[1730717314315,4.05112,2468.5,2468.4,0.19147866]
[1730717314622,4.05091,2468.6,2468.4,0.19147866]
[1730717314966,4.05033,2469.0,2468.6,0.8268]
[1730717315128,8.10069,2469.0,2468.7,0.19143334]
[1730717315454,4.05071,2468.7,2468.3,0.8268]
[1730717315623,4.939199,2468.7,2468.4,0.49802592]
[1730717315829,4.05071,2468.7,2468.5,0.19153984]
[1730717316034,4.05071,2468.7,2468.6,0.19153984]
[1730717316641,4.83417,2468.8,2468.6,0.19153984]
[1730717317456,4.83417,2468.8,2468.4,4.1321452]
[1730717318057,4.0505,2468.9,2468.5,0.7607]
[1730717318270,4.0503,2469.0,2468.6,4.05079]
[1730717318457,4.05047,2468.9,2468.5,0.7607]
[1730717318769,4.05058,2468.8,2468.5,0.7607]
[1730717319156,4.05047,2468.9,2468.5,4.81173]
[1730717320339,4.05047,2468.9,2468.6,0.1915879]
[1730717320539,4.05047,2468.9,2468.7,0.1915879]
[1730717320885,4.05047,2468.9,2468.5,0.7607]
[1730717321188,4.05056,2468.8,2468.6,0.19160796]
[1730717321351,4.05056,2468.8,2468.7,0.19160796]
[1730717321546,4.05056,2468.8,2468.5,0.7607]
[1730717321750,4.0504,2468.9,2468.6,0.19162175]
[1730717321937,4.05023,2469.0,2468.7,0.19162175]
[1730717322144,4.05023,2469.0,2468.6,4.05078]
[1730717322481,4.05023,2469.0,2468.7,0.19166831]
[1730717322650,4.05023,2469.0,2468.5,4.81173]
[1730717322850,4.05039,2468.9,2468.6,0.19167524]
[1730717323183,4.05039,2468.9,2468.7,0.19167524]
[1730717323379,4.05023,2469.0,2468.6,4.13175224]
[1730717323564,4.05023,2469.0,2468.7,0.19167264]
[1730717323764,4.05023,2469.0,2468.8,0.19167264]
[1730717323967,4.05023,2469.0,2468.6,4.05074]
[1730717324136,4.05023,2469.0,2468.7,0.19166009]
[1730717324333,4.05023,2469.0,2468.8,0.19166009]
[1730717324533,4.05023,2469.0,2468.6,4.05081]
[1730717324781,4.05023,2469.0,2468.7,0.19165636]
[1730717324987,4.05023,2469.0,2468.8,0.19165636]
[1730717325191,4.05023,2469.0,2468.6,8.10161]
[1730717325337,4.05023,2469.0,2468.6,4.937031]
[1730717325534,4.05023,2469.0,2468.7,0.19165552]
[1730717325739,4.05023,2469.0,2468.8,0.19165552]
[1730717325978,4.05023,2469.0,2468.6,4.13180802]
[1730717326283,4.05023,2469.0,2468.7,0.19162366]
[1730717326452,4.05023,2469.0,2468.8,0.19162366]
[1730717326649,4.05023,2469.0,2468.7,4.0507]
[1730717326855,4.05023,2469.0,2468.8,0.1915974]
[1730717327068,4.05023,2469.0,2468.6,4.13186802]
[1730717327271,4.05023,2469.0,2468.7,0.19159714]
[1730717327437,4.0504,2468.9,2468.8,0.19159714]
[1730717328284,4.860463,2468.9,2468.8,0.19159714]
[1730717328438,4.05098,2468.6,2468.3,0.7963]
[1730717328641,4.05078,2468.7,2468.3,4.8476]
[1730717328948,4.05078,2468.7,2468.4,0.49830247]
[1730717328949,4.05089,2468.6,2468.4,0.49830247]
[1730717329150,4.05089,2468.6,2468.5,0.1916462]
[1730717329967,4.05078,2468.7,2468.5,0.1916462]
[1730717330172,8.10158,2468.7,2468.6,0.1916462]
[1730717331051,4.05078,2468.7,2468.6,0.1916462]
[1730717334153,4.82947,2468.8,2468.6,0.1916462]
[1730717334352,4.82947,2468.8,2468.4,4.0512]
[1730717334671,4.82947,2468.8,2468.5,0.19162271]
[1730717335000,4.82947,2468.8,2468.6,0.19162271]
[1730717335205,4.05057,2468.8,2468.4,4.0512]
[1730717335419,4.05057,2468.8,2468.5,0.49825471]
[1730717335708,4.05046,2468.9,2468.6,0.1916324]
[1730717335858,4.05046,2468.9,2468.7,0.1916324]
[1730717336058,4.05046,2468.9,2468.5,4.05103]
[1730717336259,4.05046,2468.9,2468.6,0.1916153]
[1730717336496,4.05046,2468.9,2468.7,0.19162395]
[1730717336654,4.05046,2468.9,2468.5,4.05103]
[1730717336856,4.05046,2468.9,2468.6,0.19163987]
[1730717337057,4.05046,2468.9,2468.7,0.19163987]
[1730717337253,4.05046,2468.9,2468.5,4.05103]
[1730717337457,4.05046,2468.9,2468.6,0.19165006]
[1730717337760,4.05046,2468.9,2468.7,0.19165006]
[1730717337761,4.05055,2468.8,2468.7,0.19165006]
[1730717339864,4.05055,2468.8,2468.4,8.10226]
[1730717340200,4.05055,2468.8,2468.5,0.19165909]
[1730717340355,4.05055,2468.8,2468.6,0.19165909]
[1730717340558,4.05055,2468.8,2468.7,0.19165909]
[1730717342401,4.05055,2468.8,2468.4,8.10224]
[1730717342586,4.05055,2468.8,2468.5,0.49874772]
[1730717342900,4.05055,2468.8,2468.6,0.19180354]
[1730717343056,4.05055,2468.8,2468.7,0.19180354]
[1730717343264,5.752561,2468.8,2468.7,0.19180354]
[1730717343588,4.05072,2468.7,2468.3,4.05134]
[1730717343961,4.0508,2468.7,2468.4,0.49904748]
[1730717344161,4.0508,2468.7,2468.5,0.49904748]
[1730717344471,4.0508,2468.7,2468.6,0.19193273]
[1730717345797,4.05045,2468.9,2468.6,0.19193273]
[1730717345999,4.8376,2469.0,2468.7,0.19193273]
[1730717346211,8.88795,2469.0,2468.8,0.19193273]
[1730717346364,8.88796,2469.0,2468.6,4.05086]
[1730717346559,8.88796,2469.0,2468.7,0.19199347]
[1730717346871,4.8376,2469.0,2468.8,0.19199347]
[1730717347089,4.05038,2468.9,2468.5,0.7736]
[1730717347421,4.05062,2468.8,2468.6,0.19204212]
[1730717347708,4.05103,2468.6,2468.3,0.8085]
[1730717347929,4.05103,2468.6,2468.4,0.49957683]
[1730717348135,4.05103,2468.6,2468.5,0.19213631]
[1730717349894,4.05103,2468.6,2468.2,4.05144]
[1730717350203,8.10201,2468.6,2468.3,0.49942472]
[1730717350422,4.05098,2468.6,2468.4,0.1920776]
[1730717350636,4.05098,2468.6,2468.5,0.1920776]
[1730717351491,4.939919,2468.6,2468.5,0.1920776]
[1730717353490,4.05104,2468.5,2468.1,0.8123]
[1730717353695,4.05104,2468.5,2468.2,0.38828214]
[1730717353930,4.05104,2468.5,2468.3,0.4992703]
[1730717354114,4.05104,2468.5,2468.4,0.19201065]
[1730717354540,4.05098,2468.6,2468.4,0.19201065]
[1730717354843,4.939916,2468.6,2468.5,0.19201065]
[1730717356635,4.05104,2468.5,2468.1,0.8123]
[1730717356848,4.05104,2468.5,2468.2,0.49943926]
[1730717357140,4.05104,2468.5,2468.3,0.49958132]
[1730717357460,4.05104,2468.5,2468.4,0.19213804]
[1730717358552,4.940012,2468.5,2468.4,0.19213804]
[1730717360516,4.940012,2468.5,2468.1,0.8123]
[1730717360714,4.05104,2468.5,2468.2,0.30734277]
[1730717360946,4.05104,2468.5,2468.3,0.49943017]
[1730717361114,4.05104,2468.5,2468.4,0.19207796]
[1730717362460,4.05095,2468.6,2468.4,0.95237796]
[1730717362616,4.05095,2468.6,2468.5,0.19207796]
[1730717363044,4.0508,2468.7,2468.5,0.19207796]
[1730717363368,4.05087,2468.6,2468.4,0.7603]
[1730717363666,4.05087,2468.6,2468.5,0.19208089]
[1730717366860,4.0508,2468.7,2468.5,0.19208089]
[1730717367023,4.0508,2468.7,2468.6,0.19212094]
[1730717367570,4.05105,2468.5,2468.2,0.7729]
[1730717367867,4.05105,2468.5,2468.3,0.49960491]
[1730717368034,4.05105,2468.5,2468.4,0.49960491]
[1730717368725,4.05087,2468.7,2468.4,0.49960491]
[1730717368924,4.05087,2468.7,2468.5,0.19214711]
[1730717369145,4.05098,2468.6,2468.2,4.82437]
[1730717369354,4.05087,2468.7,2468.3,4.55099348]
[1730717369524,8.10171,2468.7,2468.4,0.1921581]
[1730717369848,8.10171,2468.7,2468.5,0.1921581]
[1730717370169,4.05046,2468.9,2468.6,0.9795581]
[1730717370338,4.05046,2468.9,2468.3,0.7874]
[1730717370339,4.05071,2468.7,2468.3,0.7874]
[1730717370551,4.05071,2468.7,2468.4,0.49955977]
[1730717370552,4.0509,2468.6,2468.4,0.49955977]
[1730717370879,4.0509,2468.6,2468.5,0.49955977]
[1730717371245,4.0509,2468.6,2468.3,0.7874]
[1730717371554,4.05071,2468.7,2468.5,0.3074184]
[1730717371762,4.05087,2468.6,2468.3,4.83876]
[1730717371944,4.05087,2468.6,2468.4,0.49957622]
[1730717372144,4.05087,2468.6,2468.5,0.49957622]
[1730717372376,4.05071,2468.7,2468.5,0.49957622]
[1730717372709,4.05071,2468.7,2468.6,0.19213608]
[1730717374751,4.05071,2468.7,2468.3,4.83876]
[1730717374965,4.05071,2468.7,2468.4,0.4995344]
[1730717375171,4.05071,2468.7,2468.5,0.4995344]
[1730717375385,4.05071,2468.7,2468.6,0.19211999]
[1730717377392,4.942468,2468.7,2468.6,0.19211999]
[1730717377871,5.720268,2468.7,2468.6,0.19211999]
[1730717380393,5.720268,2468.7,2468.2,4.13254227]
[1730717380394,4.05101,2468.6,2468.2,4.13254227]
[1730717380578,4.05101,2468.6,2468.3,0.88405311]
[1730717380897,4.05101,2468.6,2468.4,0.49966025]
[1730717381219,4.05101,2468.6,2468.5,0.49966025]
[1730717381860,4.05101,2468.6,2468.2,4.05152]
[1730717382205,4.05101,2468.6,2468.3,0.88401333]
[1730717382355,4.05101,2468.6,2468.4,0.49963822]
[1730717382558,4.05101,2468.6,2468.5,0.49963822]
[1730717383001,4.05065,2468.8,2468.5,0.49963822]
[1730717383306,4.05016,2469.1,2468.6,0.49971116]
[1730717383466,4.05031,2469.0,2468.7,0.19215992]
[1730717383660,4.05031,2469.0,2468.8,0.19215992]
[1730717383901,4.05031,2469.0,2468.6,4.05087]
[1730717384106,4.05031,2469.0,2468.7,0.19223187]
[1730717384324,4.05031,2469.0,2468.8,0.19223187]
[1730717384611,4.05038,2468.9,2468.6,0.891027]
[1730717384818,4.05038,2468.9,2468.7,0.4997587]
[1730717385015,4.05038,2468.9,2468.8,0.19220626]
[1730717385177,4.05038,2468.9,2468.8,0.19218596]
[1730717386714,4.05026,2469.0,2468.8,0.19218596]
[1730717386919,4.05026,2469.0,2468.9,0.19218596]
[1730717387074,4.05016,2469.1,2468.9,0.19218596]
[1730717387269,8.1003,2469.1,2468.6,4.83605]
[1730717387588,4.05014,2469.1,2468.7,1.55361968]
[1730717387789,4.05025,2469.0,2468.8,0.19201794]
[1730717387995,4.05025,2469.0,2468.9,0.19201794]
[1730717389343,4.0506,2468.8,2468.6,0.7853]
[1730717389555,4.0506,2468.8,2468.7,0.19198532]
[1730717390154,4.0504,2468.9,2468.7,0.19198532]
[1730717390305,4.0504,2468.9,2468.8,0.19198532]
[1730717392101,4.05059,2468.8,2468.6,0.7853]
[1730717392321,4.05059,2468.8,2468.7,0.19198323]
[1730717393545,4.85379,2468.8,2468.7,0.19198323]
[1730717394905,4.85379,2468.8,2468.4,0.7863]
[1730717394906,4.05092,2468.6,2468.4,0.7863]
[1730717395108,4.05092,2468.6,2468.5,0.49928954]
[1730717395721,4.05092,2468.6,2468.2,4.05144]
[1730717396034,4.0512,2468.4,2468.3,0.49926257]
[1730717396848,4.0512,2468.4,2468.3,0.19201566]
[1730717397052,4.05114,2468.5,2468.3,0.19201566]
[1730717397263,4.05114,2468.5,2468.4,0.19201566]
[1730717399156,4.05114,2468.5,2468.1,4.81908]
[1730717399337,4.05114,2468.5,2468.4,0.19204301]
[1730717401570,4.05114,2468.5,2468.4,0.19194714]
[1730717402425,4.05094,2468.6,2468.4,0.19194714]
[1730717402658,4.05071,2468.7,2468.2,4.05149]
[1730717402926,4.05086,2468.7,2468.4,0.7929]
[1730717403135,4.05089,2468.6,2468.5,0.19190925]
[1730717403638,4.05089,2468.6,2468.0,4.05178]
[1730717403639,4.05109,2468.5,2468.0,4.05178]
[1730717403874,4.05109,2468.5,2468.2,0.8326]
[1730717404038,4.05109,2468.5,2468.3,0.1919411]
[1730717404239,4.05137,2468.3,2468.0,0.8326]
[1730717404476,4.0512,2468.4,2468.0,0.8326]
[1730717404477,4.05153,2468.2,2468.1,0.49910973]
[1730717404969,4.05153,2468.2,2468.1,0.49913186]
[1730717405292,4.05153,2468.2,2468.1,0.19196518]
[1730717408417,4.05153,2468.2,2468.1,0.19185176]
[1730717409620,4.05186,2468.0,2467.9,0.060581]
[1730717409910,4.05172,2468.1,2467.9,0.2524533]
[1730717410071,4.05172,2468.1,2467.9,0.060581]
[1730717410268,4.05186,2468.0,2467.9,0.060581]
[1730717410569,4.05186,2468.0,2467.9,0.25242184]
[1730717411900,4.05186,2468.0,2467.9,0.060581]
[1730717412683,4.05172,2468.1,2467.9,0.25230531]
[1730717413032,4.05154,2468.2,2467.9,0.060581]
[1730717413180,4.05154,2468.2,2468.0,0.7751]
[1730717414697,4.0514,2468.3,2468.0,0.7751]
[1730717414912,4.05154,2468.2,2468.0,0.7751]
[1730717417498,4.05154,2468.2,2467.9,0.060581]
[1730717418387,4.05154,2468.2,2468.0,0.19176894]
[1730717418724,4.05154,2468.2,2468.1,0.19174648]
[1730717418927,4.05154,2468.2,2467.9,0.060581]
[1730717419085,4.05154,2468.2,2468.0,0.19175092]
[1730717419282,4.05154,2468.2,2467.9,0.060581]
[1730717419493,4.0513,2468.4,2468.1,0.8209]
[1730717419918,4.0513,2468.4,2468.2,0.19176564]
[1730717420102,4.0513,2468.4,2468.1,0.8209]
[1730717420310,4.0513,2468.4,2468.2,0.19178428]
[1730717420512,4.0513,2468.4,2468.1,0.8209]
[1730717420739,4.0513,2468.4,2468.2,0.19180841]
[1730717420907,4.0513,2468.4,2468.1,0.8209]
[1730717421103,4.0513,2468.4,2468.2,0.19180443]
[1730717421349,4.0513,2468.4,2468.1,0.8209]
[1730717421516,4.0513,2468.4,2468.2,0.19184059]
[1730717421711,4.0513,2468.4,2468.1,0.8209]
[1730717422019,4.0513,2468.4,2468.2,0.19180391]
[1730717422345,4.0513,2468.4,2468.1,0.8209]
[1730717422501,4.0513,2468.4,2468.2,0.19180735]
[1730717422701,4.0513,2468.4,2468.1,0.8209]
[1730717422929,4.0513,2468.4,2468.2,0.19184002]
[1730717423155,4.0513,2468.4,2468.3,0.19184979]
[1730717423364,4.0513,2468.4,2468.1,0.8209]
[1730717423566,4.0513,2468.4,2468.2,0.1918849]
[1730717423729,4.0513,2468.4,2468.3,0.1918849]
[1730717425227,4.05156,2468.2,2467.9,0.060581]
[1730717425468,4.05156,2468.2,2468.0,0.49919005]
[1730717425672,4.05156,2468.2,2468.1,0.19198756]
[1730717426367,4.05156,2468.2,2468.1,0.192003]
[1730717426573,4.05156,2468.2,2468.1,0.19200184]
[1730717429871,4.0513,2468.4,2468.1,0.19200184]
[1730717430027,4.0513,2468.4,2468.0,4.05185]
[1730717430233,4.05138,2468.3,2468.1,0.49901686]
[1730717430446,4.05138,2468.3,2468.2,0.19192095]
[1730717432280,4.12640079,2468.3,2468.2,0.19192095]
[1730717433232,4.88490079,2468.3,2468.2,0.19192095]
[1730717433737,5.77852087,2468.3,2468.2,0.19192095]
[1730717434786,5.02002087,2468.3,2468.2,0.19192095]
[1730717437344,4.12639079,2468.3,2467.9,4.112601]
[1730717437585,4.12639079,2468.3,2468.0,0.96496856]
[1730717437796,0.07502079,2468.3,2468.0,4.13281751]
[1730717437989,0.07502079,2468.3,2468.1,0.49959543]
[1730717438139,0.07502079,2468.3,2468.2,0.49959543]
[1730717438340,0.07502079,2468.3,2468.2,0.19214347]
[1730717438542,0.07502079,2468.3,2468.2,1.30190509]
[1730717438815,4.05107,2468.5,2468.2,2.25053535]
[1730717438968,0.07100441,2468.3,2468.2,0.8023]
[1730717439156,4.05121,2468.4,2468.2,0.99445495]
[1730717439363,4.05121,2468.4,2468.3,0.19215495]
[1730717439764,4.05094,2468.6,2468.3,0.19215495]
[1730717439970,4.05094,2468.6,2468.4,0.19215495]
[1730717440144,4.05094,2468.6,2468.3,0.51271724]
[1730717440346,4.05094,2468.6,2468.4,0.1921433]
[1730717440543,8.10197,2468.6,2468.2,0.8023]
[1730717440987,4.05094,2468.6,2468.3,0.38427475]
[1730717441192,4.05094,2468.6,2468.4,0.19213633]
[1730717441343,4.05094,2468.6,2468.2,0.8023]
[1730717441670,4.05094,2468.6,2468.3,0.49959291]
[1730717442022,4.05094,2468.6,2468.4,0.19214412]
[1730717442198,4.05094,2468.6,2468.3,0.08101831]
[1730717442344,4.05094,2468.6,2468.4,0.19216397]
[1730717442543,4.05094,2468.6,2468.5,0.19216397]
[1730717443085,4.84772,2468.7,2468.5,0.19216397]
[1730717443391,4.84772,2468.7,2468.3,4.05129]
[1730717443555,4.84772,2468.7,2468.4,0.1921238]
[1730717443765,4.84772,2468.7,2468.5,0.1921238]
[1730717444072,4.84772,2468.7,2468.3,4.05129]
[1730717444281,4.84772,2468.7,2468.4,0.19212674]
[1730717444496,4.05104,2468.5,2468.2,0.8023]
[1730717444639,4.05104,2468.5,2468.3,0.19212327]
[1730717444845,4.05104,2468.5,2468.4,0.19212327]
[1730717446865,4.940943,2468.5,2468.4,0.19212327]
[1730717447285,5.698543,2468.5,2468.4,0.19212327]
[1730717447806,5.698543,2468.5,2468.0,0.7823]
[1730717447807,4.05145,2468.3,2468.0,0.7823]
[1730717448171,4.05145,2468.3,2468.1,0.1921567]
[1730717448363,4.05145,2468.3,2468.2,0.1921567]
[1730717449002,4.11279474,2468.3,2468.2,0.1921567]
[1730717451573,4.11279474,2468.3,2468.0,0.7823]
[1730717451920,4.11279474,2468.3,2468.2,0.19230038]
[1730717452074,4.11279474,2468.3,2468.2,0.5000132]
[1730717455179,4.11279474,2468.3,2468.2,0.50019012]
[1730717455816,0.06134474,2468.3,2468.2,0.50019012]
[1730717456613,4.11271474,2468.3,2468.2,0.50019012]
[1730717457407,5.09384751,2468.3,2468.2,0.50019012]
[1730717457720,5.92574751,2468.3,2468.2,0.19237218]
[1730717458769,5.92574751,2468.3,2468.2,0.19247635]
[1730717461400,5.92574751,2468.3,2468.2,0.19243919]
[1730717464752,4.05156,2468.2,2467.9,0.060581]
[1730717465050,4.11273474,2468.3,2468.2,0.19245464]
[1730717465348,4.05139,2468.3,2468.2,0.19245464]
[1730717465548,4.05139,2468.3,2468.2,0.50042884]
[1730717465701,4.05139,2468.3,2468.2,0.19245464]
[1730717465905,4.0511,2468.5,2468.2,0.19245464]
[1730717466246,4.05107,2468.5,2468.3,0.19245464]
[1730717466446,8.10166,2468.7,2468.4,0.19245464]
[1730717466598,4.05083,2468.7,2468.5,0.19245464]
[1730717466946,4.05083,2468.7,2468.2,4.05143]
[1730717466947,4.05088,2468.6,2468.2,4.05153]
[1730717467245,4.05088,2468.6,2468.3,0.50035685]
[1730717467416,4.05088,2468.6,2468.4,0.1924363]
[1730717467617,4.05088,2468.6,2468.5,0.1924363]
[1730717468352,4.05088,2468.6,2468.2,4.05153]
[1730717468557,4.05104,2468.5,2468.3,0.50036957]
[1730717468857,4.05104,2468.5,2468.4,0.19244414]
[1730717469470,4.05091,2468.6,2468.4,0.19244414]
[1730717469671,4.05091,2468.6,2468.5,0.19244414]
[1730717471775,4.05091,2468.6,2468.2,4.05153]
[1730717471939,4.05071,2468.7,2468.5,0.19256009]
[1730717472268,0.8256,2468.8,2468.5,0.19256009]
[1730717472269,4.05062,2468.8,2468.5,0.8202]
[1730717472422,4.05062,2468.8,2468.6,0.19256009]
[1730717472623,4.0511,2468.5,2468.3,0.8202]
[1730717472824,4.0511,2468.5,2468.4,0.19254729]
[1730717475000,4.81299,2468.6,2468.4,0.19254729]
[1730717475182,8.86398,2468.6,2468.5,0.19254729]
[1730717475389,8.86398,2468.6,2468.1,4.83567]
[1730717475552,8.86398,2468.6,2468.2,0.3081905]
[1730717475753,4.05089,2468.6,2468.3,0.19259386]
[1730717476070,4.05089,2468.6,2468.4,0.19259386]
[1730717476277,4.05104,2468.5,2468.1,5.89613173]
[1730717476589,4.05104,2468.5,2468.2,0.50084552]
[1730717476885,4.05104,2468.5,2468.3,0.50084552]
[1730717477089,4.05104,2468.5,2468.4,0.19262425]
[1730717478873,4.05104,2468.5,2468.1,5.89613173]
[1730717479201,4.10586736,2468.5,2468.2,0.50086517]
[1730717479361,4.10586736,2468.5,2468.3,0.50086517]
[1730717479719,4.10586736,2468.5,2468.4,0.19263136]
[1730717482598,0.05482736,2468.5,2468.4,0.19262699]
[1730717482793,0.05482736,2468.5,2468.4,5.32436763]
[1730717483103,4.87296,2469.0,2468.4,6.50859649]
[1730717483262,4.05045,2468.9,2468.5,4.55183763]
[1730717483474,4.05045,2468.9,2468.6,0.19262699]
[1730717483716,4.05045,2468.9,2468.7,0.19262699]
[1730717483877,4.87296,2469.0,2468.5,5.7884876]
[1730717483878,4.87289,2469.0,2468.5,5.7884876]
[1730717484188,4.05029,2469.0,2468.7,0.7914]
[1730717484880,4.05055,2468.8,2468.4,0.7914]
[1730717485082,4.05087,2468.6,2468.5,0.5007664]
[1730717485278,4.81167,2468.6,2468.5,0.19259382]
[1730717485892,4.05104,2468.5,2468.1,0.7914]
[1730717486096,4.05128,2468.4,2468.2,0.50079508]
[1730717486296,4.05128,2468.4,2468.0,0.08102449]
[1730717486297,4.05137,2468.3,2468.0,0.08102449]
[1730717486513,4.05137,2468.3,2468.1,0.50078445]
[1730717486818,0.7608,2468.6,2467.9,0.060581]
[1730717486819,4.05182,2468.1,2467.9,0.060581]
[1730717486984,4.05182,2468.1,2468.0,0.50077688]
[1730717487211,4.05182,2468.1,2468.0,0.19259785]
[1730717487391,4.944649,2468.1,2468.0,0.19259785]
[1730717487692,4.05186,2468.0,2467.9,0.060581]
[1730717487883,4.05186,2468.0,2467.9,0.25317474]
[1730717488526,4.84016,2468.0,2467.9,0.060581]
[1730717488726,6.38944853,2468.0,2467.9,0.060581]
[1730717490798,4.05172,2468.1,2467.9,0.060581]
[1730717491210,8.10336,2468.2,2467.9,0.060581]
[1730717491596,4.05168,2468.2,2467.9,0.060581]
[1730717491805,0.7974,2468.3,2467.9,0.060581]
[1730717492137,4.84887,2468.3,2467.9,0.72518028]
[1730717492432,4.05154,2468.2,2467.9,0.72518028]
[1730717494228,0.04509231,2468.1,2467.9,0.72518028]
[1730717497612,0.04509231,2468.1,2467.9,0.060581]
[1730717499840,0.04509231,2468.1,2467.9,4.112601]
[1730717500037,4.05143,2468.3,2467.9,4.112601]
[1730717500240,0.04335484,2468.0,2467.9,4.19363277]
[1730717500412,4.05143,2468.3,2467.9,4.38591992]
[1730717500756,0.04335484,2468.0,2467.9,3.70443871]
[1730717501077,0.8186,2468.5,2467.9,3.70443871]
[1730717501078,4.05155,2468.2,2467.9,2.15916921]
[1730717501211,4.05143,2468.3,2467.9,6.21117921]
[1730717501411,0.04347023,2468.1,2468.0,0.19226859]
[1730717501614,4.05143,2468.3,2468.0,0.19226859]
[1730717501854,0.04347023,2468.1,2467.9,5.01091807]
[1730717502176,4.05143,2468.3,2468.0,0.19227079]
[1730717502368,4.05143,2468.3,2467.9,5.01091807]
[1730717502540,4.05143,2468.3,2468.0,0.19228042]
[1730717502718,4.05143,2468.3,2467.9,5.01091807]
[1730717502917,4.05143,2468.3,2468.0,0.19228083]
[1730717503143,4.05143,2468.3,2467.9,5.01091807]
[1730717503340,4.05143,2468.3,2468.0,0.19228237]
[1730717503653,4.05143,2468.3,2467.9,5.01091807]
[1730717503857,4.05143,2468.3,2468.0,0.19228695]
[1730717504043,4.05143,2468.3,2467.9,5.01091807]
[1730717504367,4.05143,2468.3,2468.0,0.1922861]
[1730717504515,4.05143,2468.3,2467.9,6.00284044]
[1730717504711,4.05143,2468.3,2468.0,0.19229014]
[1730717504917,4.05143,2468.3,2467.9,4.929891]
[1730717505120,4.05143,2468.3,2468.0,0.19228463]
[1730717505350,4.05143,2468.3,2467.9,4.929891]
[1730717505656,4.05143,2468.3,2468.0,0.1922893]
[1730717505860,4.05143,2468.3,2467.9,4.929891]
[1730717506064,4.05143,2468.3,2467.9,4.62217749]
[1730717506635,4.05161,2468.2,2467.8,4.05207]
[1730717507264,4.05161,2468.2,2467.8,8.10418]
[1730717507443,0.8168,2468.1,2467.6,4.43704737]
[1730717507647,4.86857,2468.1,2467.7,4.44104516]
[1730717507965,0.04308925,2468.0,2467.7,0.08103596]
[1730717508165,4.09508925,2468.0,2467.6,4.05249]
[1730717508329,4.05213,2467.9,2467.4,4.05277]
[1730717508530,0.04244518,2467.8,2467.5,0.38875876]
[1730717508727,0.8168,2468.1,2467.4,0.08104653]
[1730717508926,4.05202,2467.9,2467.5,0.30773218]
[1730717509130,4.09459537,2468.0,2467.6,0.0810465]
[1730717509131,0.04244518,2467.8,2467.6,0.0810465]
[1730717509428,4.05194,2468.0,2467.6,4.05244]
[1730717509968,0.04255028,2467.9,2467.6,4.05244]
[1730717510329,4.05189,2468.0,2467.6,4.05244]
[1730717510726,0.04255028,2467.9,2467.6,4.05244]
[1730717512567,0.04255028,2467.9,2467.7,0.08103771]
[1730717513264,0.04255028,2467.9,2467.5,6.37641629]
[1730717513469,0.04255028,2467.9,2467.6,4.36032356]
[1730717513633,0.04255028,2467.9,2467.7,0.30788356]
[1730717513834,0.04255028,2467.9,2467.6,4.05244]
[1730717514171,0.04255028,2467.9,2467.7,0.30787655]
[1730717514327,0.04255028,2467.9,2467.6,4.05244]
[1730717514534,0.04255028,2467.9,2467.7,0.30804665]
[1730717514726,0.04255028,2467.9,2467.6,4.05244]
[1730717514931,0.04255028,2467.9,2467.7,0.3080503]
[1730717515252,4.09459028,2467.9,2467.5,6.37643629]
[1730717515433,0.04255028,2467.9,2467.6,4.36056012]
[1730717515637,0.04255028,2467.9,2467.7,0.30806012]
[1730717515834,0.04255028,2467.9,2467.6,4.0525]
[1730717516034,0.04255028,2467.9,2467.7,0.30814131]
[1730717516256,0.04255028,2467.9,2467.8,0.30817192]
[1730717516453,0.04255028,2467.9,2467.8,0.3081822]
[1730717516759,0.04255028,2467.9,2467.6,4.0525]
[1730717516969,0.04255028,2467.9,2467.7,0.30819342]
[1730717517276,0.04255028,2467.9,2467.6,4.0525]
[1730717517474,0.04255028,2467.9,2467.7,0.30819058]
[1730717517658,0.04255028,2467.9,2467.6,4.0525]
[1730717517973,0.04255028,2467.9,2467.8,4.05219]
[1730717518139,0.04255028,2467.9,2467.8,0.50076891]
[1730717518342,0.04259267,2467.9,2467.8,0.50076891]
[1730717518548,4.86856,2468.1,2467.8,0.50076891]
[1730717518746,0.04269776,2468.0,2467.9,0.19258639]
[1730717519145,4.86856,2468.1,2467.9,0.19258639]
[1730717519432,5.760569,2468.1,2468.0,0.19258639]
[1730717520357,4.86856,2468.1,2468.0,0.19258639]
[1730717521972,4.84142,2468.3,2468.0,0.19258639]
[1730717522185,4.82143,2468.5,2468.1,0.19258639]
[1730717522479,4.82143,2468.5,2468.2,0.19258639]
[1730717522480,0.7703,2468.5,2468.2,0.19258639]
[1730717522693,0.7703,2468.5,2468.3,0.19258639]
[1730717522837,0.7703,2468.5,2468.1,4.05158]
[1730717523033,4.82135,2468.5,2468.2,0.50093641]
[1730717523237,4.82135,2468.5,2468.3,0.19265921]
[1730717523462,4.05131,2468.4,2467.9,6.37581629]
[1730717523738,4.05131,2468.4,2468.0,0.88532347]
[1730717523940,4.05131,2468.4,2467.9,6.37581629]
[1730717524136,4.05131,2468.4,2468.0,0.50037848]
[1730717524137,0.03898574,2468.3,2468.0,0.50037848]
[1730717524341,4.82923,2468.2,2468.1,0.19244461]
[1730717524587,4.86811071,2468.2,2468.1,0.19244461]
[1730717525755,0.81658071,2468.2,2468.1,0.19244461]
[1730717526098,4.86811071,2468.2,2468.1,0.19244461]
[1730717526477,0.81658071,2468.2,2468.1,0.19244461]